bitfinex/quotes_BTCUSD_20220109
["timestamp","ask_amount","ask_price","bid_price","bid_amount"]
[1641696326921,0.09281285,42150.0,42149.0,0.039]
[1641696327218,0.47474686,42150.0,42149.0,0.039]
[1641696327422,0.7334282,42150.0,42142.0,0.05933492]
[1641696327616,0.7334282,42150.0,42138.0,0.00127059]
[1641696327617,0.32667761,42149.0,42138.0,0.00127059]
[1641696328019,0.059337,42144.0,42138.0,0.00127059]
[1641696328318,0.059337,42144.0,42139.0,0.382321]
[1641696328520,0.00037904,42144.0,42141.0,0.05933802]
[1641696328720,0.00037904,42144.0,42142.0,0.382321]
[1641696328918,0.00037904,42144.0,42142.0,0.38358395]
[1641696329419,0.09242586,42150.0,42142.0,0.44291295]
[1641696329620,0.18821491,42151.0,42142.0,0.025]
[1641696329817,0.6176455,42151.0,42142.0,0.025]
[1641696330020,0.29290847,42146.0,42142.0,0.025]
[1641696330458,0.6176455,42151.0,42142.0,0.025]
[1641696330656,0.382321,42150.0,42142.0,0.025]
[1641696330856,0.382321,42150.0,42143.0,0.05933325]
[1641696331058,0.482321,42150.0,42143.0,0.05933325]
[1641696331757,0.29004509,42149.0,42143.0,0.10833325]
[1641696331959,0.059333,42147.0,42143.0,0.10833325]
[1641696332158,0.059333,42147.0,42143.0,0.049]
[1641696332458,0.118667,42148.0,42143.0,0.049]
[1641696332459,0.382321,42146.0,42143.0,0.049]
[1641696332664,0.118667,42148.0,42143.0,0.049]
[1641696332858,0.118667,42148.0,42139.0,0.21988431]
[1641696333257,0.059336,42145.0,42143.0,0.05933297]
[1641696333658,0.059336,42145.0,42139.0,0.29388431]
[1641696333858,0.059336,42145.0,42139.0,0.19388431]
[1641696334058,0.059336,42145.0,42139.0,0.07521782]
[1641696334901,0.43173542,42145.0,42141.0,0.05933646]
[1641696335102,0.43173542,42145.0,42139.0,0.00121782]
[1641696335316,0.43173542,42145.0,42138.0,0.02]
[1641696335502,0.059336,42145.0,42138.0,0.02]
[1641696335701,0.059336,42145.0,42138.0,0.21751361]
[1641696335902,0.059336,42145.0,42139.0,0.441656]
[1641696336101,0.059336,42145.0,42141.0,0.05933588]
[1641696337705,0.382321,42144.0,42141.0,0.05933588]
[1641696337961,0.382321,42144.0,42138.0,0.02]
[1641696338157,0.35776515,42140.0,42138.0,0.02]
[1641696338557,0.45776515,42140.0,42138.0,0.02]
[1641696338757,0.53189515,42140.0,42138.0,0.02]
[1641696338961,0.382321,42139.0,42138.0,0.02]
[1641696339159,0.92660204,42139.0,42138.0,0.02]
[1641696339657,0.93560204,42139.0,42138.0,0.02]
[1641696339856,0.83560204,42139.0,42138.0,0.02]
[1641696340258,0.450669,42139.0,42138.0,0.02]
[1641696340759,0.009,42139.0,42138.0,0.02]
[1641696340957,0.133468,42140.0,42138.0,0.02]
[1641696341357,0.07413,42140.0,42138.0,0.079337]
[1641696341809,0.07413,42140.0,42138.0,0.02]
[1641696342808,0.382321,42139.0,42138.0,0.02]
[1641696343009,0.13347,42140.0,42138.0,0.02]
[1641696343807,0.13347,42140.0,42138.0,0.2160918]
[1641696344006,0.07413,42140.0,42139.0,0.00122919]
[1641696344409,0.07413,42140.0,42139.0,0.98355019]
[1641696344606,0.07413,42140.0,42139.0,0.38355019]
[1641696344808,0.07413,42140.0,42139.0,1.05352433]
[1641696346059,0.07413,42140.0,42139.0,0.84841017]
[1641696346258,0.07413,42140.0,42139.0,1.04443434]
[1641696346459,0.07413,42140.0,42139.0,1.04419035]
[1641696346758,0.07413,42140.0,42139.0,0.74841017]
[1641696347159,0.07413,42140.0,42139.0,0.74718098]
[1641696347459,0.07413,42140.0,42139.0,0.382321]
[1641696347660,0.07413,42140.0,42138.0,0.13867035]
[1641696347860,0.07413,42140.0,42138.0,0.02]
[1641696348362,0.3509254,42140.0,42138.0,0.02]
[1641696348561,0.382321,42139.0,42138.0,0.02]
[1641696348759,0.501015,42139.0,42138.0,0.02]
[1641696350612,0.601015,42139.0,42138.0,0.02]
[1641696350818,0.059346,42140.0,42138.0,0.02]
[1641696351113,0.059346,42140.0,42139.0,0.83101644]
[1641696351913,0.059346,42140.0,42138.0,0.02]
[1641696353261,0.059346,42140.0,42138.0,0.21587871]
[1641696353463,0.059346,42140.0,42139.0,0.382321]
[1641696353659,0.059335,42142.0,42140.0,0.05933559]
[1641696353859,0.00037691,42149.0,42141.0,0.382321]
[1641696354058,0.382321,42148.0,42138.0,0.22374014]
[1641696354260,0.00037691,42149.0,42138.0,0.22374014]
[1641696354261,0.118676,42145.0,42138.0,0.22374014]
[1641696354463,0.29864961,42144.0,42138.0,0.22374014]
[1641696354662,0.29864961,42144.0,42138.0,0.07934172]
[1641696355760,0.29364961,42144.0,42138.0,0.07934172]
[1641696355966,0.11868,42142.0,42138.0,0.07934172]
[1641696356361,0.11868,42142.0,42138.0,0.02]
[1641696356711,0.059339,42142.0,42138.0,0.02]
[1641696356910,0.118679,42143.0,42139.0,0.382321]
[1641696357311,0.118679,42143.0,42140.0,0.05933889]
[1641696357913,0.059338,42141.0,42138.0,0.02]
[1641696359918,0.059338,42141.0,42138.0,0.07934233]
[1641696360316,0.059338,42141.0,42138.0,0.02]
[1641696361465,0.059344,42140.0,42138.0,0.02]
[1641696362862,0.382321,42139.0,42138.0,0.02]
[1641696363063,0.482321,42139.0,42138.0,0.02]
[1641696363464,0.1,42139.0,42138.0,0.02]
[1641696363666,0.102,42139.0,42138.0,0.048]
[1641696364241,0.102,42139.0,42138.0,0.043]
[1641696364443,0.002,42139.0,42138.0,0.043]
[1641696364846,0.384321,42139.0,42138.0,0.043]
[1641696365046,0.10268767,42133.0,42129.0,0.4129]
[1641696365243,0.10268767,42133.0,42118.0,0.79913531]
[1641696365244,0.059365,42129.0,42118.0,0.79913531]
[1641696365443,0.19690123,42133.0,42119.0,0.05936456]
[1641696365444,0.0478,42128.0,42119.0,0.05936456]
[1641696365843,0.30258644,42125.0,42118.0,0.79913531]
[1641696366247,0.61681031,42125.0,42118.0,0.000696]
[1641696366644,0.61681031,42125.0,42118.0,0.06006]
[1641696366846,0.059368,42123.0,42118.0,0.000696]
[1641696367445,0.059368,42123.0,42121.0,0.00044274]
[1641696368459,0.059368,42123.0,42118.0,0.000696]
[1641696368662,0.059368,42123.0,42121.0,0.00044274]
[1641696369063,0.059372,42122.0,42121.0,0.00044274]
[1641696369463,0.441693,42122.0,42121.0,0.00044274]
[1641696369860,0.548693,42122.0,42121.0,0.00044274]
[1641696370062,0.548696,42122.0,42121.0,0.00044274]
[1641696370659,0.548696,42122.0,42118.0,0.000696]
[1641696370864,0.726823,42122.0,42121.0,0.00044274]
[1641696371061,0.719823,42122.0,42121.0,3.00044274]
[1641696371261,0.337502,42122.0,42121.0,3.00044274]
[1641696371706,0.344502,42122.0,42121.0,3.00044274]
[1641696371908,0.344502,42122.0,42121.0,3.00043278]
[1641696372109,0.285125,42122.0,42121.0,3.00043278]
[1641696372709,0.232925,42122.0,42121.0,2.52038278]
[1641696372911,0.232925,42122.0,42121.0,2.51995]
[1641696373108,0.225925,42122.0,42121.0,2.52038278]
[1641696373508,0.25072354,42122.0,42121.0,2.04533378]
[1641696373709,0.26272354,42122.0,42121.0,2.04533378]
[1641696374012,0.36272354,42122.0,42121.0,1.569822]
[1641696374208,0.74504454,42122.0,42121.0,1.57025478]
[1641696374409,0.84504454,42122.0,42121.0,1.57025478]
[1641696374610,0.84504454,42122.0,42121.0,1.09517878]
[1641696374817,0.84504454,42122.0,42118.0,0.000696]
[1641696374818,0.2,42119.0,42118.0,0.000696]
[1641696375017,0.45,42118.0,42109.0,0.68983294]
[1641696375212,0.45,42118.0,42109.0,0.21463894]
[1641696375213,0.45128963,42110.0,42109.0,0.21463894]
[1641696375509,0.02860199,42108.0,42093.0,0.79913531]
[1641696375704,0.40739437,42102.0,42093.0,0.79913531]
[1641696375907,0.059411,42097.0,42093.0,0.000696]
[1641696376503,0.118824,42096.0,42094.0,0.00044194]
[1641696376707,0.0478,42102.0,42095.0,0.38357266]
[1641696376906,0.02860199,42108.0,42097.0,0.35271211]
[1641696377103,0.02860199,42108.0,42105.0,0.39338064]
[1641696377502,0.02860199,42108.0,42106.0,0.00044182]
[1641696377705,0.03760199,42108.0,42106.0,0.00044182]
[1641696377906,0.00129776,42107.0,42106.0,0.00044182]
[1641696378306,0.441707,42107.0,42106.0,0.00044182]
[1641696378707,0.541707,42107.0,42106.0,0.00044182]
[1641696379220,0.441707,42107.0,42106.0,0.00044182]
[1641696379615,0.441707,42107.0,42105.0,0.39414147]
[1641696379815,0.068386,42107.0,42106.0,0.00044182]
[1641696380816,0.068386,42107.0,42106.0,0.35043188]
[1641696381015,0.059386,42107.0,42106.0,0.35043188]
[1641696381215,0.059386,42107.0,42106.0,0.00043188]
[1641696381819,0.068386,42107.0,42099.0,0.11876885]
[1641696382016,0.068386,42107.0,42106.0,0.25043188]
[1641696382216,0.068386,42107.0,42106.0,0.00043188]
[1641696383066,0.02860199,42108.0,42106.0,0.00043188]
[1641696383264,0.02860199,42108.0,42107.0,0.00126845]
[1641696383265,1.99e-06,42108.0,42107.0,0.00126845]
[1641696383464,1.99e-06,42108.0,42107.0,0.48138945]
[1641696383662,1.99e-06,42108.0,42107.0,0.72301889]
[1641696383862,1.99e-06,42108.0,42107.0,0.55838945]
[1641696384265,1.99e-06,42108.0,42107.0,0.55882132]
[1641696384662,1.99e-06,42108.0,42107.0,0.40975287]
[1641696385062,1.99e-06,42108.0,42107.0,0.38275287]
[1641696385263,1.99e-06,42108.0,42107.0,0.38275309]
[1641696385762,1.99e-06,42108.0,42107.0,0.40775309]
[1641696385964,0.05938699,42108.0,42107.0,0.40775309]
[1641696387015,0.05938699,42108.0,42107.0,0.38275309]
[1641696387414,0.05938699,42108.0,42107.0,0.382321]
[1641696387613,0.05938699,42108.0,42107.0,0.38275309]
[1641696387814,0.06338699,42108.0,42107.0,0.40575309]
[1641696388415,0.00400199,42108.0,42107.0,0.40575309]
[1641696389014,1.99e-06,42108.0,42107.0,0.38275309]
[1641696389621,1.99e-06,42108.0,42107.0,0.382321]
[1641696389917,1.99e-06,42108.0,42107.0,0.02243208]
[1641696389918,0.00400199,42108.0,42107.0,0.02243208]
[1641696390118,0.06338499,42108.0,42107.0,0.02243208]
[1641696391167,1.99e-06,42108.0,42107.0,0.38275308]
[1641696391561,0.25116295,42119.0,42107.0,0.38275308]
[1641696391562,0.25087906,42119.0,42107.0,0.38275308]
[1641696391761,0.382321,42118.0,42107.0,0.03043208]
[1641696391962,0.059386,42117.0,42107.0,0.03043208]
[1641696392163,0.60122941,42115.0,42107.0,0.03043208]
[1641696392362,0.118765,42112.0,42107.0,0.03043208]
[1641696392962,0.118765,42112.0,42107.0,0.03]
[1641696393163,0.118765,42112.0,42109.0,0.00043206]
[1641696393463,0.059386,42110.0,42109.0,0.00043206]
[1641696393664,0.441707,42110.0,42109.0,0.00043206]
[1641696393865,0.441707,42110.0,42103.0,0.00124375]
[1641696393866,0.441707,42110.0,42097.0,0.118774]
[1641696394065,0.159386,42110.0,42098.0,0.00122312]
[1641696394320,0.159386,42110.0,42109.0,0.00043206]
[1641696394521,0.541707,42110.0,42109.0,0.00043206]
[1641696395119,0.541707,42110.0,42100.0,0.47742533]
[1641696395322,0.541707,42110.0,42104.0,0.00044075]
[1641696395323,0.25027085,42107.0,42104.0,0.00044075]
[1641696395522,0.059394,42106.0,42104.0,0.00044075]
[1641696395723,0.382321,42105.0,42104.0,0.00044075]
[1641696396120,0.035564,42106.0,42104.0,0.00044075]
[1641696396319,0.3018578,42105.0,42104.0,0.00044076]
[1641696396520,0.6842608,42105.0,42104.0,0.00044076]
[1641696397322,0.6842608,42105.0,42094.0,0.05939886]
[1641696397520,0.6842608,42105.0,42104.0,0.00044076]
[1641696397521,0.3018578,42105.0,42104.0,0.00044076]
[1641696397721,0.6842608,42105.0,42104.0,0.00044076]
[1641696397965,0.6982608,42105.0,42104.0,0.00044076]
[1641696398366,0.7982608,42105.0,42104.0,0.00044076]
[1641696398671,0.035564,42104.0,42093.0,0.20605501]
[1641696398866,0.059404,42099.0,42093.0,0.20605501]
[1641696399068,0.059404,42099.0,42092.0,0.00129]
[1641696399269,0.059404,42099.0,42090.0,0.96000117]
[1641696399672,0.178205,42106.0,42093.0,0.41410904]
[1641696399972,0.118765,42111.0,42099.0,0.00121018]
[1641696400371,0.118765,42111.0,42104.0,0.0593812]
[1641696400769,0.118765,42111.0,42105.0,0.28740728]
[1641696401271,0.059383,42107.0,42105.0,0.28740728]
[1641696401472,0.059383,42107.0,42104.0,0.0593812]
[1641696401912,0.067383,42107.0,42105.0,0.01]
[1641696403113,0.059383,42107.0,42102.0,0.05939011]
[1641696403411,0.059383,42107.0,42103.0,0.382403]
[1641696403611,0.059383,42107.0,42102.0,0.05939011]
[1641696403811,0.065383,42107.0,42102.0,0.07439011]
[1641696404612,0.065383,42107.0,42102.0,0.015]
[1641696405013,0.059383,42107.0,42101.0,0.05939371]
[1641696405963,0.065383,42107.0,42102.0,0.05939209]
[1641696406363,0.065383,42107.0,42099.0,0.12043391]
[1641696407166,0.00039605,42109.0,42105.0,2.12905973]
[1641696407367,0.059376,42112.0,42109.0,0.17811884]
[1641696407567,0.000696,42116.0,42110.0,0.382403]
[1641696407867,0.000696,42116.0,42111.0,0.00127968]
[1641696407868,0.0007,42115.0,42111.0,0.00127968]
[1641696408165,0.0007,42114.0,42112.0,0.382403]
[1641696408367,0.059376,42113.0,42112.0,0.44177408]
[1641696409066,0.059376,42113.0,42112.0,0.05937108]
[1641696409313,0.059376,42113.0,42112.0,0.44177408]
[1641696409516,0.05976425,42113.0,42112.0,0.67091374]
[1641696409913,0.07976425,42113.0,42112.0,0.67991374]
[1641696410114,0.07976425,42113.0,42112.0,0.82771374]
[1641696410316,0.0007,42124.0,42112.0,0.82771374]
[1641696410317,0.0012712,42138.0,42115.0,0.38362135]
[1641696410517,0.35,42139.0,42119.0,0.432403]
[1641696410715,0.0007,42133.0,42125.0,0.00125469]
[1641696410915,0.000696,42141.0,42130.0,0.00121686]
[1641696411216,0.0007,42135.0,42132.0,0.059344]
[1641696411519,0.0007,42133.0,42132.0,0.059344]
[1641696411715,0.00039362,42134.0,42131.0,0.118687]
[1641696411914,0.00039362,42134.0,42132.0,0.007]
[1641696412115,0.0007,42133.0,42132.0,0.007]
[1641696412315,0.00039362,42134.0,42132.0,0.05602058]
[1641696412514,0.00039362,42134.0,42133.0,0.62387524]
[1641696412714,0.0007,42138.0,42133.0,0.67167524]
[1641696412968,0.00130963,42149.0,42133.0,0.90902524]
[1641696413164,0.118676,42143.0,42133.0,0.52662224]
[1641696413362,0.27313281,42140.0,42134.0,0.11868402]
[1641696413563,0.17933663,42149.0,42135.0,0.31640162]
[1641696413763,0.17933663,42149.0,42136.0,0.0478]
[1641696413964,0.382403,42148.0,42136.0,0.0478]
[1641696414163,0.17933663,42149.0,42136.0,0.0478]
[1641696414665,0.059339,42141.0,42138.0,0.11867414]
[1641696414964,0.40398221,42140.0,42133.0,0.1298887]
[1641696415666,0.059346,42137.0,42133.0,0.1198887]
[1641696415864,0.059346,42137.0,42134.0,0.382403]
[1641696416263,0.059346,42137.0,42133.0,0.1912327]
[1641696417013,0.059346,42137.0,42135.0,0.0593453]
[1641696417909,0.059346,42137.0,42135.0,0.0703453]
[1641696418313,0.059346,42137.0,42135.0,0.011]
[1641696419712,0.059346,42137.0,42134.0,0.05934711]
[1641696419912,0.059346,42137.0,42135.0,0.009]
[1641696420565,0.059346,42137.0,42135.0,0.22682382]
[1641696420764,0.00038316,42139.0,42136.0,0.44173949]
[1641696420964,0.00038316,42139.0,42138.0,0.00123266]
[1641696421167,0.00038316,42139.0,42138.0,0.38363566]
[1641696421561,0.1,42144.0,42138.0,0.38363566]
[1641696421761,0.0003832,42139.0,42138.0,0.00123266]
[1641696421961,0.0003832,42139.0,42138.0,0.00923266]
[1641696422562,0.0003832,42139.0,42138.0,0.39163566]
[1641696422763,0.059337,42140.0,42138.0,0.51031279]
[1641696422962,0.0003832,42139.0,42138.0,0.51031279]
[1641696423162,0.0003832,42139.0,42138.0,0.50231279]
[1641696423363,0.0003832,42139.0,42138.0,0.49731279]
[1641696423765,0.059337,42140.0,42138.0,0.49731279]
[1641696423962,0.059337,42140.0,42138.0,0.50631279]
[1641696423963,0.0003832,42139.0,42138.0,0.50631279]
[1641696424812,0.059337,42140.0,42139.0,0.1996168]
[1641696425913,0.059337,42140.0,42139.0,0.2056168]
[1641696427516,0.059337,42140.0,42139.0,0.1996168]
[1641696427960,0.059337,42140.0,42139.0,0.2046168]
[1641696429264,0.41243945,42140.0,42139.0,0.1996168]
[1641696429462,0.78984245,42140.0,42139.0,0.1996168]
[1641696429662,0.88984245,42140.0,42139.0,0.1996168]
[1641696430868,0.93984245,42140.0,42134.0,0.58431021]
[1641696431067,0.05936,42137.0,42134.0,0.58431021]
[1641696431468,0.382403,42136.0,42134.0,0.58431021]
[1641696431712,0.482403,42136.0,42134.0,0.58431021]
[1641696431913,0.55875084,42135.0,42134.0,0.58431021]
[1641696432115,0.59431484,42135.0,42134.0,0.58431021]
[1641696432315,0.33815134,42135.0,42134.0,0.58431021]
[1641696432513,0.30258734,42135.0,42134.0,0.58431021]
[1641696433915,0.32258734,42135.0,42134.0,0.58631021]
[1641696435213,0.32258734,42135.0,42134.0,0.58431021]
[1641696435214,0.039358,42135.0,42134.0,0.58431021]
[1641696435473,0.00038032,42144.0,42134.0,0.8046698]
[1641696435668,0.05934,42139.0,42134.0,0.8046698]
[1641696435867,0.05934,42139.0,42136.0,0.11867812]
[1641696436067,0.05934,42139.0,42137.0,0.60236877]
[1641696436674,0.05934,42139.0,42138.0,0.2027214]
[1641696436873,0.05934,42139.0,42138.0,0.5851244]
[1641696438171,0.05934,42139.0,42138.0,0.5961244]
[1641696438973,0.059336,42141.0,42140.0,0.05933535]
[1641696439236,0.059336,42141.0,42139.0,0.11867069]
[1641696440035,0.059336,42141.0,42140.0,1.370215]
[1641696440236,0.00130963,42149.0,42140.0,0.95383847]
[1641696440441,0.00038075,42144.0,42141.0,0.0478]
[1641696440635,0.00038075,42144.0,42143.0,0.00126033]
[1641696440836,0.00038075,42144.0,42143.0,0.42311333]
[1641696441035,0.00038075,42144.0,42143.0,0.94655757]
[1641696441434,0.00130963,42149.0,42146.0,0.059319]
[1641696442036,0.00130963,42149.0,42148.0,0.00123165]
[1641696442235,0.00155224,42152.0,42149.0,0.45]
[1641696442434,0.00041001,42152.0,42151.0,0.3815939]
[1641696442634,0.00041001,42152.0,42151.0,0.8293939]
[1641696443276,0.00041001,42152.0,42151.0,0.4293939]
[1641696443574,0.00041001,42152.0,42151.0,0.66760092]
[1641696443774,0.00079269,42152.0,42151.0,0.66760092]
[1641696443975,0.00079269,42152.0,42151.0,0.68660092]
[1641696444173,0.00068268,42152.0,42151.0,0.68660092]
[1641696444376,0.00068268,42152.0,42151.0,1.01611265]
[1641696444574,5.621e-05,42154.0,42152.0,0.382403]
[1641696444776,5.621e-05,42154.0,42153.0,0.43113133]
[1641696444975,0.0002,42158.0,42153.0,0.43113133]
[1641696445176,0.00751985,42160.0,42157.0,0.40957795]
[1641696445177,0.00111627,42159.0,42157.0,0.40957795]
[1641696445976,0.00111627,42159.0,42157.0,0.55420373]
[1641696446175,0.00111627,42159.0,42158.0,0.21503082]
[1641696446722,0.00111627,42159.0,42158.0,0.21624384]
[1641696446924,0.00152985,42159.0,42158.0,0.21624384]
[1641696447521,0.00152985,42159.0,42157.0,0.52820373]
[1641696447925,0.00111627,42159.0,42157.0,0.52820373]
[1641696448223,0.00150196,42159.0,42157.0,0.55120373]
[1641696449124,0.00111627,42159.0,42157.0,0.55120373]
[1641696449325,0.00150196,42159.0,42157.0,0.52820373]
[1641696449527,0.00150196,42159.0,42157.0,0.11862578]
[1641696450126,0.00111627,42159.0,42157.0,0.14262578]
[1641696450328,0.00150196,42159.0,42157.0,0.14262578]
[1641696450571,0.00150196,42159.0,42158.0,0.44372985]
[1641696450971,0.06568101,42160.0,42158.0,0.44372985]
[1641696450972,0.06218297,42160.0,42158.0,0.44372985]
[1641696451172,0.06218297,42160.0,42158.0,0.56234385]
[1641696452073,0.06218297,42160.0,42158.0,0.58734385]
[1641696452471,0.06218297,42160.0,42158.0,0.46872985]
[1641696452872,0.06218297,42160.0,42158.0,0.025]
[1641696453073,0.382082,42159.0,42158.0,0.025]
[1641696453274,0.06218297,42160.0,42157.0,0.05931278]
[1641696453473,0.06218297,42160.0,42157.0,0.11862578]
[1641696454075,0.06218297,42160.0,42157.0,0.57004107]
[1641696455221,0.06218297,42160.0,42157.0,0.11862578]
[1641696456122,0.06218297,42160.0,42157.0,0.16062578]
[1641696457328,0.06218297,42160.0,42157.0,0.11862578]
[1641696457531,0.06218297,42160.0,42157.0,0.05931278]
[1641696458168,0.06218297,42160.0,42157.0,0.10231278]
[1641696458469,0.00287397,42160.0,42157.0,0.16162678]
[1641696458669,0.00257397,42160.0,42157.0,0.16162678]
[1641696458869,0.00257397,42160.0,42158.0,0.22685391]
[1641696459069,0.00227397,42160.0,42157.0,0.16162678]
[1641696459271,0.00227397,42160.0,42158.0,0.20341624]
[1641696459272,0.00197397,42160.0,42158.0,0.20341624]
[1641696459470,0.06128397,42160.0,42158.0,0.32203224]
[1641696459669,0.00167397,42160.0,42158.0,0.118616]
[1641696459872,0.00137397,42160.0,42158.0,0.32475061]
[1641696460069,0.00107397,42160.0,42159.0,0.20366127]
[1641696461720,0.00107397,42160.0,42158.0,0.118616]
[1641696461917,0.00107397,42160.0,42159.0,0.20329212]
[1641696462117,0.00107397,42160.0,42159.0,0.22629212]
[1641696462318,0.00107397,42160.0,42159.0,0.023]
[1641696463318,0.00107397,42160.0,42158.0,0.17792775]
[1641696463518,0.06038597,42160.0,42158.0,0.17792775]
[1641696464017,0.06038597,42160.0,42158.0,0.20192775]
[1641696464218,0.06038597,42160.0,42159.0,0.21098707]
[1641696466066,0.06038597,42160.0,42159.0,0.23398707]
[1641696466866,0.00107397,42160.0,42159.0,0.23398707]
[1641696467267,0.00107397,42160.0,42159.0,0.21098707]
[1641696468266,0.00107397,42160.0,42159.0,0.23598707]
[1641696469325,0.00107397,42160.0,42159.0,0.21098707]
[1641696469727,0.00107397,42160.0,42158.0,0.17792775]
[1641696470027,0.06038697,42160.0,42158.0,0.17792775]
[1641696470331,0.06038697,42160.0,42159.0,0.025]
[1641696470729,0.00107397,42160.0,42159.0,0.025]
[1641696471127,0.03987994,42161.0,42159.0,0.07930776]
[1641696471326,0.03987994,42161.0,42159.0,0.11361576]
[1641696472226,0.03987994,42161.0,42159.0,0.13761576]
[1641696473068,0.03987994,42161.0,42159.0,0.34280856]
[1641696473267,0.03987994,42161.0,42159.0,0.29097497]
[1641696473868,0.03987994,42161.0,42159.0,0.08578217]
[1641696474069,0.03987994,42161.0,42160.0,0.20867048]
[1641696475373,0.03987994,42161.0,42159.0,0.06178217]
[1641696475769,0.03987994,42161.0,42160.0,0.20464823]
[1641696475970,0.03487994,42161.0,42160.0,0.20403346]
[1641696476269,0.00031001,42162.0,42160.0,0.20403346]
[1641696476819,0.0003758,42164.0,42162.0,0.05931]
[1641696477418,0.0003758,42164.0,42161.0,0.20422174]
[1641696477619,0.0596858,42164.0,42162.0,0.05931]
[1641696477817,0.05968583,42164.0,42162.0,0.11862]
[1641696478218,0.05968583,42164.0,42162.0,0.0480694]
[1641696478819,0.05931,42164.0,42162.0,0.1073794]
[1641696479020,0.05968584,42164.0,42162.0,0.1073794]
[1641696479519,0.05968584,42164.0,42162.0,0.0963794]
[1641696479719,0.05968584,42164.0,42163.0,0.20260548]
[1641696479924,0.05931,42164.0,42163.0,0.20260548]
[1641696480120,0.05968584,42164.0,42163.0,0.20260548]
[1641696480323,0.05968584,42164.0,42163.0,0.20317693]
[1641696480774,0.05968584,42164.0,42162.0,0.1073794]
[1641696480976,0.05931,42164.0,42162.0,0.1073794]
[1641696481174,0.05968584,42164.0,42162.0,0.1073794]
[1641696481376,0.05968584,42164.0,42162.0,0.0963794]
[1641696481777,0.382082,42163.0,42162.0,0.0963794]
[1641696482075,0.382082,42163.0,42162.0,0.1073794]
[1641696482275,0.482082,42163.0,42162.0,0.1073794]
[1641696482675,0.382082,42163.0,42162.0,0.1073794]
[1641696482874,0.382082,42163.0,42162.0,0.011]
[1641696483077,0.482082,42163.0,42162.0,0.011]
[1641696483277,0.60071,42163.0,42162.0,0.011]
[1641696483875,0.60540513,42163.0,42162.0,0.011]
[1641696484076,0.97771677,42163.0,42162.0,0.011]
[1641696484324,0.35779061,42161.0,42153.0,0.0012095]
[1641696484524,0.059321,42158.0,42153.0,0.00164373]
[1641696484924,0.059321,42158.0,42155.0,0.05932246]
[1641696485524,0.059321,42158.0,42155.0,0.11863846]
[1641696485726,0.059321,42158.0,42156.0,0.059316]
[1641696485928,0.059321,42158.0,42156.0,0.17794669]
[1641696486326,0.059321,42158.0,42156.0,0.11863069]
[1641696486729,0.059321,42158.0,42155.0,0.038]
[1641696486926,0.059327,42156.0,42155.0,0.038]
[1641696487129,0.091071,42156.0,42155.0,0.038]
[1641696487330,0.091071,42156.0,42153.0,0.00043423]
[1641696487529,0.35458653,42154.0,42153.0,0.00043423]
[1641696487728,0.382082,42154.0,42153.0,0.00043423]
[1641696487972,0.059323,42154.0,42153.0,0.00043423]
[1641696488171,0.021,42154.0,42153.0,0.06675741]
[1641696488375,0.016,42154.0,42153.0,0.06675741]
[1641696488573,0.016,42154.0,42153.0,0.12608041]
[1641696488771,0.016,42154.0,42153.0,0.12564618]
[1641696488972,0.016,42154.0,42153.0,0.12608041]
[1641696489372,0.016,42154.0,42153.0,0.11908041]
[1641696489574,0.059318,42155.0,42153.0,0.11908041]
[1641696490174,0.059318,42155.0,42153.0,0.06875741]
[1641696490977,0.059318,42155.0,42153.0,0.06832318]
[1641696491175,0.059318,42155.0,42153.0,0.12807841]
[1641696491375,0.059318,42155.0,42154.0,0.382082]
[1641696491823,0.059318,42155.0,42154.0,0.58366592]
[1641696492223,0.059318,42155.0,42154.0,0.59066592]
[1641696492423,0.059314,42157.0,42154.0,0.64997992]
[1641696492623,0.00112709,42163.0,42154.0,0.64997992]
[1641696492825,0.00112709,42163.0,42154.0,0.31911155]
[1641696493023,0.00112709,42163.0,42154.0,0.36911155]
[1641696493425,0.00037576,42164.0,42158.0,0.118614]
[1641696493628,0.059307,42162.0,42161.0,0.059307]
[1641696494227,0.059307,42162.0,42161.0,0.072307]
[1641696494628,0.441389,42162.0,42161.0,0.072307]
[1641696495330,0.059307,42162.0,42161.0,0.28007143]
[1641696495579,0.00037581,42164.0,42161.0,0.26707143]
[1641696495776,0.00037581,42164.0,42162.0,0.0593]
[1641696496480,0.00052002,42167.0,42162.0,0.0593]
[1641696496678,0.00037584,42164.0,42163.0,0.059301]
[1641696496878,0.00037584,42164.0,42163.0,0.11860118]
[1641696497481,0.00037584,42164.0,42163.0,0.32480958]
[1641696497678,0.00037585,42164.0,42163.0,0.38410858]
[1641696498082,0.00037585,42164.0,42163.0,0.32480958]
[1641696498278,0.00037585,42164.0,42163.0,0.33780958]
[1641696498678,0.00052002,42167.0,42163.0,0.33780958]
[1641696498880,0.00037584,42164.0,42163.0,0.39710958]
[1641696499077,0.00037584,42164.0,42163.0,0.33780958]
[1641696499621,0.00037584,42164.0,42163.0,0.32480958]
[1641696499821,0.00052002,42167.0,42163.0,0.32480958]
[1641696500023,0.00052002,42167.0,42164.0,0.059299]
[1641696500222,0.00052002,42167.0,42165.0,0.0592989]
[1641696500424,0.00052002,42167.0,42166.0,0.57813859]
[1641696501128,0.00089589,42167.0,42166.0,0.57813859]
[1641696502324,0.00089589,42167.0,42166.0,0.58613859]
[1641696503070,0.00052002,42167.0,42166.0,0.58613859]
[1641696503275,0.00089589,42167.0,42166.0,0.58613859]
[1641696503472,0.00089589,42167.0,42166.0,0.57813859]
[1641696503974,0.00089589,42167.0,42166.0,0.37654845]
[1641696504175,0.00052002,42167.0,42166.0,0.008]
[1641696504372,0.38297789,42167.0,42166.0,0.008]
[1641696504572,0.00089589,42167.0,42166.0,0.008]
[1641696504776,0.29085489,42170.0,42166.0,0.008]
[1641696504972,0.29085489,42170.0,42166.0,0.30449041]
[1641696504973,4.00093217,42169.0,42166.0,0.30449041]
[1641696505373,4.00093217,42169.0,42167.0,0.20087901]
[1641696506273,4.00093217,42169.0,42167.0,0.20787901]
[1641696507558,4.00093217,42169.0,42166.0,0.29649041]
[1641696508358,4.00093217,42169.0,42166.0,0.30549041]
[1641696510364,4.00093217,42169.0,42166.0,0.31349041]
[1641696510575,4.00093217,42169.0,42166.0,0.30449041]
[1641696511575,4.06023117,42169.0,42166.0,0.29649041]
[1641696512175,4.06023117,42169.0,42166.0,0.30549041]
[1641696513579,4.06023117,42169.0,42166.0,0.29649041]
[1641696513978,0.382082,42168.0,42166.0,0.29649041]
[1641696514265,0.73060055,42168.0,42166.0,0.24619241]